Cogmind - Beta 13 @@@ ROGUE MODE // 2024.04.09 @ 22:01:45 Player: Calliope Result: Destroyed by 1U-H6Q(R) with Subdweller Laser Performance ------------- Evolutions (0) 0 Regions Visited (3) 600 Robots Destroyed (18) 90 Value Destroyed (507) 507 Prototype IDs (0) 0 Alien Tech Used (0) 0 Bonus (154) 154 TOTAL SCORE: 1351 Bonus ------- Follower Combat Kills 195 Friendly Fire -41 Cogmind --------- Core Integrity 0/250 Matter 270/300 Energy 250/250 System Corruption 0% Temperature Cool (6) Movement Walking (190) Ox1 Location -10/Subcaves Parts ------- > --- POWER (1) -------- Ion Engine > --- PROPULSION (2) --- Aluminum Leg Aluminum Leg > --- UTILITY (2) ------ Large Storage Unit Targeting Computer > --- WEAPON (2) ------- Battle Rifle Battle Rifle > --- INVENTORY (15) --- Light Ion Engine Light Treads Aluminum Leg Wheel Compact Wheel Improved Heat Sink Subdweller Optics Signal Interpreter Riot Gun Grenade Launcher Datajack Makeshift Hammer Scrap Shield Fragment (48) Peak State ------------ > --- POWER ------------ Ion Engine > --- PROPULSION ------- Aluminum Leg Aluminum Leg > --- UTILITY ---------- Large Storage Unit Targeting Computer > --- WEAPON ----------- Battle Rifle Makeshift Hammer > --- INVENTORY -------- Light Ion Engine Light Ion Engine Light Treads Aluminum Leg Wheel Compact Wheel Improved Heat Sink Subdweller Optics Signal Interpreter Riot Gun Battle Rifle Grenade Launcher Mining Laser Scrap Shield Fragment [Rating: 13] Favorites ----------- Power Ion Engine Engine Ion Engine Propulsion Aluminum Leg Treads Light Treads Leg Aluminum Leg Utility Large Storage Unit Storage Large Storage Unit Processor Targeting Computer Weapon Mining Claw Energy Gun Small Laser Ballistic Gun Battle Rifle Launcher Grenade Launcher Impact Weapon Makeshift Hammer Slashing Weapon Mining Claw Special Melee Weapon Datajack Build | -11 -10 -10 -10 ------- Run | Yrd Mat Min Sub Slots Evolved . | . . . . Power . | . . . . Propulsion . | . . . . Utility . | . . . . Weapon . | . . . . Parts Attached 26 | 6 11 2 7 Power 2 | 1 . 1 . Engine 2 | 1 . 1 . Core . | . . . . Reactor . | . . . . Propulsion 8 | 2 4 . 2 Treads 4 | 2 2 . . Leg 4 | . 2 . 2 Wheel . | . . . . Hover . | . . . . Flight . | . . . . Utility 3 | 1 2 . . Device . | . . . . Storage 2 | 1 1 . . Processor 1 | . 1 . . Hackware . | . . . . Protection . | . . . . Artifact . | . . . . Weapon 13 | 2 5 1 5 Energy Gun 1 | . 1 . . Energy Cannon . | . . . . Ballistic Gun 7 | 2 2 . 3 Ballistic Cannon . | . . . . Launcher 1 | . . 1 . Special Weapon . | . . . . Impact Weapon 1 | . . . 1 Slashing Weapon 2 | . 2 . . Piercing Weapon . | . . . . Special Melee Weapon 1 | . . . 1 Unidentified Prototypes . | . . . . Parts Lost 4 | . 2 1 1 Power 1 | . . 1 . Propulsion 2 | . 1 . 1 Utility . | . . . . Weapon 1 | . 1 . . Highest Loss Streak 2 | . 2 1 1 To Critical Strikes . | . . . . Average Slot Usage (%) 95 | . 86 99 100 Engine 13 | . 14 13 14 Treads 8 | . 25 . . Leg 19 | . 2 28 28 Storage 14 | . 14 14 14 Processor 10 | . 2 14 14 Ballistic Gun 12 | . 23 . 15 Launcher 6 | . . 13 5 Slashing Weapon 7 | . 2 14 3 Naked Turns . | . . . . Heaviest Build 31 | 13 29 30 31 Greatest Support 40 | 40 40 20 20 Greatest Overweight (x) 3 | . 3 1 1 Average Overweight (x) . | . . 1 1 Largest Inventory Capacity 15 | 8 15 15 15 Average Capacity 13 | 6 11 15 15 Most Carried 15 | 5 13 12 15 Average Carried 10 | 3 7 11 13 Final Capacity 15 | 8 15 15 15 Final Carried 13 | 5 12 12 13 Class Distribution -------------------- 100% | Mutant Dominant Class ---------------- Mutant | -10/Materials Mutant | -10/Mines Mutant | -10/Subcaves Resources | -11 -10 -10 -10 ----------- Run | Yrd Mat Min Sub Matter Collected 793 | 207 283 195 108 Remotely . | . . . . Salvage Created 431 | . 302 89 40 Parts 35 | . 22 8 5 Haulers Intercepted . | . . . . Recyclers Shooed . | . . . . Parts Field Recycled . | . . . . Retrieved Matter . | . . . . Parts Self-Destructed 9 | . . . 9 Prevented . | . . . . Kills | -11 -10 -10 -10 ------- Run | Yrd Mat Min Sub Combat Hostiles Destroyed 18 | . 9 8 1 Melee 2 | . 1 1 . Guns 9 | . 8 . 1 AOE 7 | . . 7 . Classes Destroyed 6 | . 3 2 1 Operator 1 | . 1 . . Swarmer 7 | . 3 4 . Grunt 8 | . 6 2 . Demolisher 1 | . . 1 . Subdweller 1 | . . . 1 Assembled 1 | . . 1 . Best Kill Streak 3 | . 3 3 1 Combat Bots Only 3 | . 3 3 1 Max Kills in Single Turn 2 | . 1 2 1 Gunslinging . | . . . . Exploded 2 | . . 2 . Melee 1 | . 1 1 . Uniques/NPCs Destroyed . | . . . . Combat | -11 -10 -10 -10 -------- Run | Yrd Mat Min Sub Hostile Shots Fired 101 | . 66 19 16 Missed 35 | . 23 3 9 Damage Taken 995 | . 474 364 157 Core 259 | . 98 91 70 Absorbed by Shields . | . . . . Core Remaining (%) 100 | 100 . . . Volleys Fired 65 | . 40 15 10 Largest 2 | . 2 1 2 Hottest 50 | . 40 30 50 Shots Fired 110 | . 80 15 15 Gun 91 | . 80 . 11 Cannon . | . . . . Launcher 19 | . . 15 4 Special . | . . . . Kinetic 91 | . 80 . 11 Thermal . | . . . . Explosive 19 | . . 15 4 Electromagnetic . | . . . . Robot Hit Streak 14 | . 7 2 14 Robot Miss Streak 6 | . 4 6 1 Penetration Max . | . . . . Secondary Targets 3 | . 2 . 1 Max Gunslinging Chain 1 | . 1 . 1 Shots Hit Robots 74 | . 51 5 18 Core Hits 37 | . 21 12 4 Critical Kills . | . . . . Critical Parts Destroyed 1 | . 1 . . Critical Strikes 1 | . 1 . . Destroy 1 | . 1 . . Melee Attacks 23 | . 17 2 4 Impact . | . . . . Slashing 19 | . 17 2 . Piercing . | . . . . Sneak Attacks 4 | . . . 4 Combat Hostiles . | . . . . Follow-up Attacks . | . . . . Damage Inflicted 1246 | . 555 320 371 Guns 626 | . 485 . 141 Cannons . | . . . . Explosions 523 | . . 293 230 Melee 97 | . 70 27 . Ramming . | . . . . Kinetic 626 | . 485 . 141 Thermal 23 | . . 23 . Explosive 500 | . . 270 230 Electromagnetic . | . . . . Impact . | . . . . Slashing 97 | . 70 27 . Piercing . | . . . . Highest Corruption . | . . . . Average Corruption . | . . . . Corruption Purged . | . . . . Corruption Blocked . | . . . . Overload Shots . | . . . . Overflow Damage . | . . . . Projectiles . | . . . . Explosions . | . . . . Melee . | . . . . Knockbacks . | . . . . Impact . | . . . . Kinetic . | . . . . Secondary . | . . . . Self-Inflicted Damage 66 | . . 66 . Shots 3 | . . 3 . Rammed . | . . . . Targets Rammed . | . . . . Kicked . | . . . . Crushed . | . . . . Highest Temperature 28 | . 28 22 . Average Temperature 9 | . 9 9 . Received Heat Transfer 362 | . 249 92 21 Siege Activations . | . . . . Robots Corrupted . | . . . . Combat Hostiles . | . . . . Parts Fried . | . . . . Impact Corruptions . | . . . . Robots Melted . | . . . . Combat Hostiles . | . . . . Parts Melted . | . . . . Heat Transferred 50 | . . 50 . Parts Sabotaged . | . . . . Parts Stolen . | . . . . Parts Stripped . | . . . . Power Chain Reactions . | . . . . Alert | -11 -10 -10 -10 ------- Run | Yrd Mat Min Sub Peak Influence 170 | . 170 126 . Initial 33 | . . 33 . Average 58 | . 58 60 . Maximum Alert Level . | . . . . Low Security (%) 100 | 100 100 100 . Level 1 . | . . . . Level 2 . | . . . . Level 3 . | . . . . Level 4 . | . . . . Level 5 . | . . . . High Security . | . . . . Max Security . | . . . . Squads Dispatched 4 | . 4 . . Investigation 2 | . 2 . . Extermination . | . . . . Reinforcement 2 | . 2 . . Assault . | . . . . Garrison . | . . . . Intercept . | . . . . Searches Triggered . | . . . . Construction Impeded . | . . . . Haulers Reinforced . | . . . . Active Scanning Responses . | . . . . Cargo Convoy Interrupts . | . . . . Stealth | -11 -10 -10 -10 --------- Run | Yrd Mat Min Sub Distress Signals 1 | . 1 . . Communications Jammed . | . . . . Distress Signals . | . . . . Times Spotted 36 | . 16 12 8 Peak Tracking Total 3 | . 3 2 2 Tactical Retreats . | . . . . Traps | -11 -10 -10 -10 ------- Run | Yrd Mat Min Sub Traps Triggered 1 | . 1 . . Indirectly . | . . . . Trap Hack Attempts . | . . . . Triggered . | . . . . Disarmed . | . . . . Reprogrammed . | . . . . Reused . | . . . . Traps Extracted . | . . . . Installed . | . . . . Triggered . | . . . . Machines | -11 -10 -10 -10 ---------- Run | Yrd Mat Min Sub Machines Disabled 3 | . 1 2 . Max in Single Turn 1 | . 1 1 . Machines Repaired . | . . . . Machines Dismantled . | . . . . Machines Sabotaged . | . . . . Overloaded Fab Kills . | . . . . Hacking | -11 -10 -10 -10 --------- Run | Yrd Mat Min Sub Machines Accessed 6 | . 6 . . Terminals 4 | . 4 . . Fabricators . | . . . . Repair Stations . | . . . . Recycling Units 2 | . 2 . . Scanalyzers . | . . . . Garrison Access . | . . . . Total Hacks 21 | . 21 . . Successful 13 | . 13 . . Failed 8 | . 8 . . Catastrophic . | . . . . Database Lockouts . | . . . . Manual 17 | . 17 . . Terminals 19 | . 19 . . Fabricators . | . . . . Repair Stations . | . . . . Recycling Units 2 | . 2 . . Scanalyzers . | . . . . Garrison Access . | . . . . Terminal Hacks 8 | . 8 . . Robot Analysis 1 | . 1 . . Branch Access Points 1 | . 1 . . Emergency Access Points 1 | . 1 . . Terminal Index 1 | . 1 . . Locate Traps 1 | . 1 . . Dispatch Records 1 | . 1 . . Zone Layout 2 | . 2 . . Fabricator Hacks . | . . . . Repair Station Hacks . | . . . . Recycling Unit Hacks 2 | . 2 . . Report Inventory 2 | . 2 . . Scanalyzer . | . . . . Garrison Access Hacks . | . . . . Unauthorized Hacks 3 | . 3 . . Terminals 3 | . 3 . . Botnet 3 | . 3 . . Fabricators . | . . . . Repair Stations . | . . . . Recycling Units . | . . . . Scanalyzers . | . . . . Garrison Access . | . . . . Data Cores Recovered . | . . . . Used . | . . . . Hacking Detections 4 | . 4 . . Full Trace Events 2 | . 2 . . Feedback Events . | . . . . Feedback Blocked . | . . . . Robot Schematics Acquired . | . . . . Robots Built . | . . . . Authchips . | . . . . Time . | . . . . Total Robot Build Rating . | . . . . Part Schematics Acquired . | . . . . Parts Built . | . . . . Authchips . | . . . . Time . | . . . . Total Part Build Rating . | . . . . Parts Repaired . | . . . . Time . | . . . . Parts Recycled . | . . . . Recycled Matter . | . . . . Retrieved Matter . | . . . . Retrieved Components . | . . . . Parts Scanalyzed . | . . . . Part Schematics Acquired . | . . . . Parts Damaged . | . . . . Bothacking | -11 -10 -10 -10 ------------ Run | Yrd Mat Min Sub Used RIF Installer . | . . . . Robots Hacked 1 | . . . 1 Non-combat . | . . . . Combat 1 | . . . 1 Robot Hacks Applied 1 | . . . 1 parse_system 1 | . . . 1 Relay Couplers Released . | . . . . Fabnet Peak Effective % . | . . . . Robots Rewired . | . . . . Allies Hacked . | . . . . Hacks Repelled . | . . . . Allies | -11 -10 -10 -10 -------- Run | Yrd Mat Min Sub Total Allies 3 | . . 3 . Largest Group 3 | . . 3 3 Highest-Rated Group 40 | . . 40 40 Highest-Rated Ally 16 | . . 16 16 Total Orders . | . . . . Ally Attacks 59 | . . 20 39 Total Damage 601 | . . 221 380 Kills 11 | . . 5 6 Allies Corrupted . | . . . . Allies Melted . | . . . . Intel | -11 -10 -10 -10 ------- Run | Yrd Mat Min Sub Robot Analysis Total 1 | . 1 . . Derelict Logs Recovered 3 | . . 2 1 Drone Launches . | . . . . Drone Recoveries . | . . . . Exploration | -11 -10 -10 -10 ------------- Run | Yrd Mat Min Sub Turns Passed 5287 | 92 1686 1844 1665 Spaces Moved 2127 | 52 592 639 844 Core 5 | 4 1 . . Treads 582 | 48 534 . . Legs 1540 | . 57 639 844 Wheels . | . . . . Hover . | . . . . Flight . | . . . . Fastest Speed 50 | 50 160 190 190 Average Speed 182 | 151 164 190 190 Slowest Speed 240 | 160 240 190 190 Overloaded Moves . | . . . . Propulsion Burnouts . | . . . . Robots Hopped . | . . . . Cave-ins Triggered . | . . . . Exploration Rate (%) 54 | 4 75 99 38 Regions Visited 3 Branch Regions 2 Pre-discovered Areas 1 | . . . 1 Known Exits Taken 1 | . 1 . . Unknown Exits Taken 2 | 1 . 1 . Scrap Searched 2 | . . 1 1 Spaces Dug 5 | . 5 . . Terrain Destroyed 115 | . 5 84 26 Melee 5 | . 5 . . Projectile . | . . . . AOE 110 | . . 84 26 Terrain Rammed . | . . . . Walls Destroyed . | . . . . Machines Disabled . | . . . . Actions | -11 -10 -10 -10 --------- Run | Yrd Mat Min Sub Total 3396 | 62 1194 1250 890 Wait 1125 | . 524 592 9 Move 2124 | 51 591 638 844 Hop . | . . . . Pick Up 24 | 5 9 1 9 Fast Attach 11 | 6 5 . . Attach 4 | . 2 1 1 Detach 1 | . 1 . . Swap 11 | . 4 1 6 Drop 8 | . 1 . 7 Fire 65 | . 40 15 10 Melee 23 | . 17 2 4 Ram . | . . . . Kick . | . . . . Crush . | . . . . Escape Stasis . | . . . . Rewire . | . . . . Trap . | . . . . Miscellaneous . | . . . . Route ------- -11/Scrapyard -10/Materials (discovered 5 exits: *Mat x3 / *Min x2) -10/Mines (discovered 3 exits: *Mat x2 / [*Sub]) -10/Subcaves (discovered 1 exit: [*Mat]) History --------- Turn | Location | Event 3 | -11/Scrapyard | Discovered new exit (range 15) 93 | -11/Scrapyard | Entered Materials 310 | -10/Materials | Build established: Mutant 862 | -10/Materials | Discovered new exit (range 16) 959 | -10/Materials | Identified exit to Mines 1000 | -10/Materials | Discovered new exit (range 14) 1354 | -10/Materials | Discovered new exit (range 15) 1532 | -10/Materials | Discovered new exit (range 13) 1779 | -10/Materials | Entered Mines 1797 | -10/Mines | Learned 2 Materials zone layouts 1864 | -10/Mines | Assembled infested the area 2067 | -10/Mines | Identified exit to Materials 2185 | -10/Mines | Core integrity fell below 50% 2418 | -10/Mines | Discovered exit to Materials (range 10) 2678 | -10/Mines | Assisted by bots powering up and referring to "LRC-V3" 3608 | -10/Mines | Discovered new exit (range 5) 3623 | -10/Mines | Entered Subcaves 3623 | -10/Subcaves | Accompanied by 3 allies 3631 | -10/Subcaves | Learned Materials garrison access intel 4150 | -10/Subcaves | Learned location of Zion (-7) 4150 | -10/Subcaves | Met a Zionite searching for "candidates" 4316 | -10/Subcaves | Disturbed a concealed Subdweller 4322 | -10/Subcaves | Ambushed by Subdweller buried in earth 4503 | -10/Subcaves | Discovered new exit (range 13) 5233 | -10/Subcaves | Core integrity fell below 20% 5288 | -10/Subcaves | Destroyed by 1U-H6Q(R) with Subdweller Laser Last Messages --------------- 04786_ Sneak attack on Trooper 1a. 04786_ Jacked Trooper 1a... 04786_ Command string: trojan 04786_ No effect. 04790_ Sneak attack on Trooper 1a. 04790_ Jacked Trooper 1a... 04790_ Command string: trojan(die) 04790_ No effect. 04795_ Dropped Lgt. Ion Engine. 04795_ Dropped Mining Laser. 04906_ Acquired 16 matter. 04908_ Acquired 36 matter. 04919_ Acquired 5 matter. 04945_ Subatomizers dissect the Sml. Laser. 05095_ Subatomizers dissect the Disposable Heat Sink. 05283_ TJ-Y6O(R) destroyed. 05283_ Switching to secondary target: 1U-H6Q(R). 05285_ 1U-H6Q(R) affixes Scrap Shield Fragment to Scrap Shield. Map ----- +----------------------------------------------------+ | ???????????????# ####????????# #?## ###### | | ??????????????## #####????# ##### ##???? | | ????????#?????# ##???## #?## ##??? | | ????????# ### ##???# ### ##?? | | ????????# ##??## ##? | | ??????? # ## #### #???# ## | | ????? ???## ##??## #???## | | | ??? ?????## ###??# ####### | | ???? ###! #?????## ##?# #?## | | ??????### ###???# #?### ##?## | | ?????## ??## ##??#####?## ######## | | ????? ???## #???###### #??????# | | ???? ??# ##???# ] #??????## | | ???? #### #???## ## #??????## | | ?????# # ##????## ######???????# | | ???# #??????# ############## | | ??? #??????# # # ## | | ???? # # ## ###?????# [ | | ?????????### #?##### ## #?????## / % | | ???????????#????# #??????#[ ## #### | | ???????????????## = #?????## ## ######### | | ???????????##### [[%!#?????# [ ### #??# | | ???????????# ## &R##????## ##?# = #??# | | ???????????# ## ##???## ##?# #?# | | ???????????## ## ##### " ## #?### # | | ???????????# ## @ "" ##???###? | | ???????????# ## ## "" ##???????? | | ???????????## ######## ###" ####????????? | | ????????????# #??????######?#######??###??????? | | ????????????# ##????####????????????## #??????? | | ????????????# #???## ###?????????## #??????? | | ????????????# #???# #?????????# ##?????? | | ##????####### #?### #?????###### #?????? | | ###?## ## ### #???### ## #?????? | | ### #?# ##??# #?????? | | ### ##?## #?????? | | # ### #??# ##?????? | | ### #?# #??# ## #??????? | | #####?### #?# % ##?# ### ##?????? | | #???????###?# % ### ## ##????? | | ###?????????## ## #####? | | #####??????# ### #? | | ###????## ## ##? | | ##????####### ## #?? | | ###????????# ##### ##? | | ## #???????# ###???## ## | | ##### #???????### ##??????# # | | #???# ##????????# ######???????# # | | #???# ##?????? ##????????????# # | | #???# #???? #?????????????# # | +----------------------------------------------------+ Best States ------------- Heat Dissipation 25 Energy Generation 10 Energy Capacity 250 Matter Stores 300 Matter Capacity 300 Sight Range 16 Terrain Scan Density 10 Evasion (%) 40 Targeting Accuracy 5 Recoil Reduction 2 Item Schematics ----------------- None Robot Schematics ------------------ None Fabricated ------------ Nothing Alien Tech Used ----------------- None Achievements -------------- I Survived The Infestation Challenges ------------ None Game ------ Seed EtherialBarrageSplitter Manual? 0 Play Time 00:32:56 Cumulative 8.4 hours Start 2024.04.09 @ 16:17:50 End 2024.04.09 @ 22:01:45 Sessions 2 Manual Loads 0 Difficulty Rogue Special Mode None Game No. 19 Rogue 17 Adventurer 0 Explorer 2 Win Type - Total 0 Types 0/0/0/0/0/0/0/0/0 Lore% 4 Gallery% 12 Achievement% 16 Wizard Run 0 Options --------- Layout 2 ASCII 0 Keyboard 1 Movement Vi Keybinds 0 Fullscreen 2 Font 32/SmallcapsGlow Map View 50x44 Zoom Use 3% Tactical HUD 1 Map Filters NONE Filters NONE Steam 1 RUN: c2360f97-2a46-478a-a30e-22956ad8b3df